bitfinex-derivatives/quotes_BNBF0:USTF0_20250904
["timestamp","ask_amount","ask_price","bid_price","bid_amount"]
[1756996007602,0.71909479,847.51,846.53,0.79200091]
[1756996008301,0.71909479,847.51,846.52,0.79200091]
[1756996009104,0.71909479,847.51,846.53,0.79200091]
[1756996009302,0.71909479,847.52,846.52,0.79200091]
[1756996010499,0.71909479,847.53,846.52,0.79200091]
[1756996011603,0.71909479,847.54,846.52,0.79200091]
[1756996011798,0.71909479,847.54,846.53,0.79200091]
[1756996012003,0.79072121,847.55,846.53,0.79200091]
[1756996012200,0.7197605,847.54,846.53,0.79200091]
[1756996012401,0.79072121,847.52,846.55,0.79200091]
[1756996012606,0.7197605,847.51,846.55,0.79200091]
[1756996013504,0.7197605,847.52,846.55,0.79200091]
[1756996014105,1.51048171,847.52,846.54,0.79200091]
[1756996014303,0.7197605,847.51,846.54,0.79200091]
[1756996014503,0.7197605,847.52,846.54,0.79200091]
[1756996015505,0.7197605,847.52,846.53,0.79200091]
[1756996016109,0.79072121,847.51,846.52,0.79200091]
[1756996016407,0.7197605,847.5,846.51,0.79200091]
[1756996016607,0.7197605,847.51,846.51,0.79200091]
[1756996017105,0.7197605,847.51,844.67,3.700575]
[1756996017106,0.79072121,847.45,846.56,0.79200091]
[1756996017311,0.20533215,847.67,846.56,0.79200091]
[1756996017312,1.51048171,847.44,846.56,0.79200091]
[1756996017512,1.51048171,847.43,846.52,0.79200091]
[1756996017710,1.51048171,847.42,846.52,0.79200091]
[1756996017908,0.7197605,847.41,846.52,0.79200091]
[1756996018406,0.79072121,847.43,846.51,0.79200091]
[1756996018610,0.71951312,847.42,846.51,0.79200091]
[1756996019011,0.79072121,847.43,846.51,0.79200091]
[1756996019213,0.79072121,847.44,846.51,0.79200091]
[1756996020413,0.71947619,847.43,846.51,0.79200091]
[1756996020818,0.79072121,847.43,846.51,0.79200091]
[1756996022824,0.79072121,847.41,846.49,0.79200091]
[1756996023317,0.79072121,847.41,846.48,0.79200091]
[1756996023721,0.71939571,847.4,846.48,0.79200091]
[1756996024221,0.71939571,847.4,846.47,0.79200091]
[1756996024416,0.71939571,847.41,846.47,0.79200091]
[1756996026220,0.71939571,847.41,846.46,0.79200091]
[1756996026420,0.71939571,847.42,846.46,0.79200091]
[1756996027222,0.79072121,847.41,846.47,0.79200091]
[1756996027424,0.71939571,847.4,846.45,0.79200091]
[1756996027624,1.51011692,847.43,846.46,0.79200091]
[1756996027820,0.71939571,847.42,846.46,0.79200091]
[1756996028222,0.71939571,847.42,846.45,0.79200091]
[1756996028519,0.79072121,847.42,846.44,0.79200091]
[1756996028723,0.71939571,847.41,846.44,0.79200091]
[1756996030126,0.71939571,847.41,846.42,0.79200091]
[1756996030425,0.71939571,847.43,846.42,0.79200091]
[1756996031121,0.71939571,847.43,846.41,0.79200091]
[1756996031325,0.71939571,847.44,846.41,0.79200091]
[1756996031621,0.71939571,847.44,846.22,1.0573071]
[1756996031622,1.51011692,847.44,846.42,0.79200091]
[1756996031925,0.71939571,847.43,846.42,0.79200091]
[1756996032221,0.71939571,847.43,846.41,0.79200091]
[1756996032425,0.71939571,847.43,846.39,0.79200091]
[1756996032725,0.71814523,847.46,846.39,0.79200091]
[1756996034527,0.71814523,847.47,846.39,0.79200091]
[1756996034723,1.50886644,847.47,846.39,0.79200091]
[1756996034927,0.71814523,847.46,846.39,0.79200091]
[1756996036325,0.79072121,847.45,846.41,0.79200091]
[1756996036524,0.71814523,847.44,846.41,0.79200091]
[1756996036724,1.50886644,847.44,846.4,0.79200091]
[1756996037029,0.79072121,847.41,846.37,0.79200091]
[1756996037226,0.79072121,847.37,846.33,0.79200091]
[1756996037430,0.79072121,847.37,846.14,1.0573071]
[1756996037431,0.79072121,847.35,846.29,0.79200091]
[1756996037726,0.71814523,847.34,846.29,0.79200091]
[1756996038029,0.71814523,847.35,846.29,0.79200091]
[1756996038229,0.71814523,847.35,846.28,0.79200091]
[1756996038430,1.50886644,847.35,846.27,0.79200091]
[1756996038642,0.71814523,847.34,846.27,0.79200091]
[1756996040629,0.79072121,847.32,846.29,0.79200091]
[1756996040827,0.71814523,847.31,846.29,0.79200091]
[1756996041930,0.71814523,847.31,846.28,0.79200091]
[1756996042230,0.71814523,847.31,846.27,0.79200091]
[1756996042434,0.71814523,847.31,846.08,1.0573071]
[1756996042435,0.79072121,847.27,846.26,0.79200091]
[1756996042631,0.79072121,847.21,846.2,0.79200091]
[1756996042830,0.71814523,847.2,846.2,0.79200091]
[1756996043141,0.71814523,847.2,846.19,0.79200091]
[1756996044235,1.50886644,847.2,846.19,0.79200091]
[1756996044531,0.71814523,847.19,846.19,0.79200091]
[1756996045136,0.71814523,847.19,846.18,0.79200091]
[1756996045336,1.50886644,847.2,846.19,0.79200091]
[1756996045532,0.79072121,847.18,846.16,0.79200091]
[1756996045731,0.79072121,847.16,846.15,0.79200091]
[1756996045932,0.71814523,847.15,846.15,0.79200091]
[1756996047233,0.71814523,847.15,845.98,1.0573071]
[1756996047234,0.71814523,847.15,846.16,0.79200091]
[1756996047435,0.71814523,847.15,846.11,0.79200091]
[1756996047639,0.71814523,847.16,846.1,0.79200091]
[1756996047938,0.71814523,847.17,846.1,0.79200091]
[1756996048935,0.71814523,847.17,846.11,0.79200091]
[1756996049140,0.71814523,847.18,846.11,0.79200091]
[1756996049440,1.50886644,847.19,846.11,0.79200091]
[1756996049639,0.71814523,847.18,846.11,0.79200091]
[1756996050436,0.71814523,847.19,846.11,0.79200091]
[1756996050835,1.50886644,847.19,846.11,0.79200091]
[1756996051042,0.71814523,847.18,846.11,0.79200091]
[1756996052738,0.20548916,846.92,846.11,0.79200091]
[1756996053337,0.20548916,846.92,845.91,1.0573071]
[1756996053338,0.20548916,846.92,846.09,0.79200091]
[1756996053943,0.20548916,846.92,846.11,0.79200091]
[1756996054141,0.20548916,846.92,846.1,0.79200091]
[1756996054341,0.20548916,846.92,846.11,0.79200091]
[1756996055747,0.20548916,846.92,846.1,0.79200091]
[1756996056747,0.20548916,846.92,846.12,0.79200091]
[1756996058249,0.20548916,846.92,846.13,0.79200091]
[1756996058449,0.20548916,846.92,846.12,0.79200091]
[1756996059249,0.20548916,846.92,846.13,0.79200091]
[1756996059846,0.20548916,846.92,846.12,0.79200091]
[1756996061348,0.20548916,846.92,846.13,0.79200091]
[1756996063453,0.20548916,846.92,846.16,0.79200091]
[1756996063853,0.20548916,846.92,846.15,0.79200091]
[1756996065661,0.20548916,846.92,846.16,0.79200091]
[1756996066159,0.20548916,846.92,846.17,0.79200091]
[1756996066662,0.20548916,846.92,846.18,0.79200091]
[1756996067964,0.20548916,846.92,846.17,0.79200091]
[1756996068261,0.20548916,846.92,846.18,0.79200091]
[1756996069667,0.20548916,846.92,846.2,0.79200091]
[1756996070164,0.20548916,846.92,846.19,0.79200091]
[1756996070363,0.20548916,846.92,846.2,0.79200091]
[1756996073768,0.20548916,846.92,846.21,0.79200091]
[1756996073967,0.20548916,846.92,845.58,0.20548916]
[1756996073968,0.20548916,846.92,846.2,0.79200091]
[1756996074664,0.20548916,846.92,846.21,0.79200091]
[1756996076365,0.20548916,846.92,846.22,0.79200091]
[1756996076673,0.20548916,846.92,846.21,0.79200091]
[1756996077569,0.20548916,846.92,846.2,0.79200091]
[1756996079369,0.20548916,846.92,846.21,0.79200091]
[1756996079873,0.20548916,846.92,845.58,0.20548916]
[1756996079874,0.20548916,846.92,846.19,0.79200091]
[1756996081370,0.20548916,846.92,846.2,0.79200091]
[1756996083076,0.20548916,846.92,846.18,0.79200091]
[1756996083270,0.20548916,846.92,846.19,0.79200091]
[1756996084270,0.20548916,846.92,846.2,0.79200091]
[1756996084476,0.20548916,846.92,846.19,0.79200091]
[1756996086975,0.20548916,846.92,846.17,0.79200091]
[1756996087179,0.20548916,846.92,846.18,0.79200091]
[1756996088377,0.20548916,846.92,846.19,0.79200091]
[1756996089281,0.20548916,846.92,846.18,0.79200091]
[1756996089682,0.20548916,846.92,846.19,0.79200091]
[1756996090283,0.20548916,846.92,846.2,0.79200091]
[1756996092178,0.20548916,846.92,846.22,0.79200091]
[1756996092478,0.20548916,846.92,846.18,0.79200091]
[1756996093282,0.20548916,846.92,846.19,0.79200091]
[1756996094281,0.20548916,846.92,846.2,0.79200091]
[1756996095178,0.20548916,846.92,846.21,0.79200091]
[1756996095678,0.20548916,846.92,846.22,0.79200091]
[1756996096382,0.20548916,846.92,846.24,0.79200091]
[1756996097382,0.92443279,846.92,846.24,0.79200091]
[1756996097580,0.92443279,846.92,846.22,0.79200091]
[1756996097879,0.71894363,846.91,846.22,0.79200091]
[1756996098279,0.71894363,846.91,846.23,0.79200091]
[1756996098583,0.20548916,846.92,846.23,0.79200091]
[1756996100185,0.20548916,846.92,846.24,0.79200091]
[1756996101784,0.20548916,846.92,846.25,0.79200091]
[1756996102185,0.20548916,846.92,846.26,0.79200091]
[1756996102486,0.99621037,846.92,846.28,0.79200091]
[1756996102786,0.71894363,846.91,846.28,0.79200091]
[1756996103182,1.50966484,846.91,846.28,0.79200091]
[1756996103385,0.71894363,846.9,846.28,0.79200091]
[1756996105087,0.71894363,846.9,846.24,0.79200091]
[1756996105286,0.71894363,846.91,846.29,0.79200091]
[1756996105487,0.20548916,846.92,846.29,0.79200091]
[1756996107284,0.20548916,846.92,846.05,1.0573071]
[1756996107483,0.20548916,846.92,846.3,0.79634821]
[1756996108181,0.92580399,846.92,846.3,0.79634821]
[1756996108384,0.92580399,846.92,846.29,0.79634821]
[1756996108385,0.72031483,846.91,846.29,0.79634821]
[1756996110289,0.20548916,846.92,846.3,0.79634821]
[1756996110485,0.79434596,846.97,846.42,0.79634821]
[1756996110688,0.72031483,846.96,846.42,0.79634821]
[1756996111488,1.51466079,846.97,846.42,0.79634821]
[1756996111688,0.72031483,846.96,846.42,0.79634821]
[1756996112390,1.51466079,846.96,846.43,0.79634821]
[1756996112587,0.72031483,846.95,846.43,0.79634821]
[1756996113485,0.72031483,846.95,846.44,0.79634821]
[1756996113693,0.20547217,847.02,846.51,0.79634821]
[1756996114190,0.20547217,847.02,846.5,0.79634821]
[1756996115192,0.20547217,847.02,846.49,0.79634821]
[1756996116393,0.20547217,847.02,846.48,0.79634821]
[1756996117194,0.20547217,847.02,846.47,0.79634821]
[1756996119095,0.20547217,847.02,846.46,0.79634821]
[1756996119595,0.20547217,847.02,846.48,0.79634821]
[1756996119892,0.20547217,847.02,846.44,0.79634821]
[1756996121198,0.20547217,847.02,846.43,0.79634821]
[1756996123291,0.20547217,847.02,846.42,0.79634821]
[1756996123493,0.20547217,847.02,846.43,0.79634821]
[1756996124298,0.20547217,847.02,846.42,0.79634821]
[1756996124494,0.20547217,847.02,846.43,0.79634821]
[1756996125192,0.20547217,847.02,846.42,0.79634821]
[1756996125394,0.20547217,847.02,846.43,0.79634821]
[1756996126097,0.20547217,847.02,846.42,0.79634821]
[1756996128298,0.20547217,847.02,846.41,0.79634821]
[1756996129698,0.20547217,847.02,846.45,0.79634821]
[1756996130398,0.20547217,847.02,846.44,0.79634821]
[1756996131793,0.20547217,847.02,846.42,0.79634821]
[1756996132396,0.20547217,847.02,846.4,0.79634821]
[1756996132595,0.20547217,847.02,846.38,0.79634821]
[1756996133098,0.20547217,847.02,846.37,0.79634821]
[1756996133998,0.20547217,847.02,846.36,0.79634821]
[1756996135295,0.20547217,847.02,846.35,0.79634821]
[1756996136198,0.20547217,847.02,846.34,0.79634821]
[1756996138396,0.20547217,847.02,846.35,0.79634821]
[1756996138597,0.20547217,847.02,846.36,0.79634821]
[1756996140401,0.20547217,847.02,846.37,0.79634821]
[1756996142097,0.20547217,847.02,846.39,0.79634821]
[1756996142702,0.20547217,847.02,846.38,0.79634821]
[1756996144098,0.20547217,847.02,846.37,0.79634821]
[1756996144699,0.20547217,847.02,846.39,0.79634821]
[1756996145504,0.20547217,847.02,846.4,0.79634821]
[1756996146301,0.20547217,847.02,846.39,0.79634821]
[1756996146904,0.20547217,847.02,846.4,0.79634821]
[1756996147104,0.20547217,847.02,846.39,0.79634821]
[1756996147306,0.20547217,847.02,846.4,0.79634821]
[1756996147508,0.20547217,847.02,846.39,0.79634821]
[1756996149206,0.20547217,847.02,846.4,0.79634821]
[1756996150311,0.20547217,847.02,846.41,0.79634821]
[1756996152310,0.20547217,847.02,846.42,0.79634821]
[1756996153910,0.20547217,847.02,846.44,0.79634821]
[1756996154713,0.20547217,847.02,846.45,0.79634821]
[1756996154913,0.20547217,847.02,846.44,0.79634821]
[1756996155314,0.20547217,847.02,846.45,0.79634821]
[1756996156210,0.20547217,847.02,846.46,0.79634821]
[1756996157214,0.20547217,847.02,846.47,0.79634821]
[1756996157715,0.20547217,847.02,846.43,0.79634821]
[1756996157917,0.20547217,847.02,846.41,0.79634821]
[1756996159316,0.20547217,847.02,846.42,0.79634821]
[1756996159518,0.20547217,847.02,845.58,0.20548916]
[1756996159519,0.20547217,847.02,846.41,0.79634821]
[1756996160115,0.20547217,847.02,846.42,0.79634821]
[1756996162217,0.20547217,847.02,846.43,0.79634821]
[1756996162717,0.20547217,847.02,846.41,0.79634821]
[1756996163012,0.20547217,847.02,846.4,0.79634821]
[1756996163213,0.20547217,847.02,846.41,0.79634821]
[1756996164214,0.20547217,847.02,846.42,0.79634821]
[1756996166119,0.20547217,847.02,846.43,0.79634821]
[1756996167619,0.20547217,847.02,846.45,0.79634821]
[1756996167821,0.20547217,847.02,846.43,0.79634821]
[1756996168220,0.20547217,847.02,846.44,0.79634821]
[1756996169421,0.20547217,847.02,846.45,0.79634821]
[1756996170217,0.20547217,847.02,846.46,0.79634821]
[1756996172118,0.20547217,847.02,846.47,0.79634821]
[1756996172625,0.20547217,847.02,846.03,1.5859607]
[1756996172626,0.20547217,847.02,846.48,0.79634821]
[1756996172919,0.20547217,847.02,846.47,0.79634821]
[1756996173119,0.20547217,847.02,846.26,1.0573071]
[1756996173120,0.20547217,847.02,846.48,0.79634821]
[1756996173324,0.20547217,847.02,846.49,0.79634821]
[1756996177728,0.20547217,847.02,846.52,0.79634821]
[1756996178129,0.20547217,847.02,846.53,0.79634821]
[1756996178425,0.20547217,847.02,846.52,0.79634821]
[1756996178825,0.92669791,847.02,846.52,0.79634821]
[1756996179129,0.72122574,847.01,846.51,0.79634821]
[1756996179326,0.20547217,847.02,846.52,0.79634821]
[1756996179725,0.20547217,847.02,846.51,0.79634821]
[1756996180129,0.20547217,847.02,846.52,0.79634821]
[1756996181529,0.20547217,847.02,846.53,0.79634821]
[1756996183636,0.20547217,847.02,846.54,0.79634821]
[1756996183931,0.20547217,847.02,846.53,0.79634821]
[1756996186638,0.92669791,847.02,846.53,0.79634821]
[1756996186838,0.72122574,847.01,846.53,0.79634821]
[1756996187036,0.20547217,847.02,846.53,0.79634821]
[1756996187235,0.20547217,847.02,846.52,0.79634821]
[1756996188541,0.20547217,847.02,846.53,0.79634821]
[1756996189644,0.20547217,847.02,846.54,0.79634821]
[1756996194942,0.20547217,847.02,846.55,0.79634821]
[1756996195645,0.99981813,847.02,846.56,0.79634821]
[1756996195845,0.72092928,847.01,846.56,0.79634821]
[1756996197346,1.51527524,847.01,846.56,0.79634821]
[1756996197546,0.72092928,847.0,846.56,0.79634821]
[1756996197948,0.72092928,847.0,846.57,0.79634821]
[1756996198444,1.51527446,847.0,846.56,0.79634821]
[1756996198647,0.7209285,846.99,846.53,0.79634821]
[1756996198947,0.7209285,847.01,846.53,0.79634821]
[1756996199442,0.20547217,847.02,846.53,0.79634821]
[1756996199944,0.92640067,847.02,846.53,0.79634821]
[1756996200148,0.7209285,847.01,846.53,0.79634821]
[1756996200344,0.20547217,847.02,846.53,0.79634821]
[1756996200844,0.92638883,847.02,846.53,0.79634821]
[1756996201047,0.72091666,847.01,846.53,0.79634821]
[1756996201248,0.20547217,847.02,846.53,0.79634821]
[1756996201644,0.92638883,847.02,846.53,0.79634821]
[1756996201844,0.72091666,847.01,846.53,0.79634821]
[1756996202149,0.20547217,847.02,846.53,0.79634821]
[1756996202649,0.92638883,847.02,846.53,0.79634821]
[1756996202849,0.20547217,847.02,846.53,0.79634821]
[1756996207253,0.99981813,847.02,846.52,0.79634821]
[1756996207453,0.72069881,847.01,846.53,0.79634821]
[1756996210854,0.20547217,847.02,846.47,0.79634821]
[1756996213452,0.9270519,847.02,846.47,0.79634821]
[1756996214356,0.72157973,847.01,846.47,0.79634821]
[1756996214556,0.9270519,847.02,846.47,0.79634821]
[1756996214857,0.72157973,847.01,846.47,0.79634821]
[1756996215053,0.20547217,847.02,846.47,0.79634821]
[1756996215557,0.20547217,847.02,846.45,0.79634821]
[1756996216653,0.20547217,847.02,846.06,1.5859607]
[1756996216654,0.20547217,847.02,846.46,0.79634821]
[1756996217958,0.20547217,847.02,846.47,0.79634821]
[1756996218659,0.20547217,847.02,846.5,0.79634821]
[1756996218859,0.9270519,847.02,846.5,0.79634821]
[1756996219059,0.72157973,847.01,846.5,0.79634821]
[1756996219257,0.72157973,847.01,846.51,0.79634821]
[1756996219460,0.20547217,847.02,846.51,0.79634821]
[1756996220455,0.9270519,847.02,846.51,0.79634821]
[1756996220757,0.72157973,847.01,846.51,0.79634821]
[1756996220956,0.20547217,847.02,846.51,0.79634821]
[1756996222060,0.20547217,847.02,846.52,0.79634821]
[1756996222963,0.9270519,847.02,846.52,0.79634821]
[1756996223165,0.72157973,847.01,846.52,0.79634821]
[1756996223566,0.20547217,847.02,846.52,0.79634821]
[1756996223766,0.20547217,847.02,846.55,0.79634821]
[1756996223966,0.79434596,847.01,846.56,0.79634821]
[1756996224167,0.72157973,847.0,846.56,0.79634821]
[1756996224768,0.72157973,847.0,846.55,0.79634821]
[1756996224968,0.72157973,847.01,846.55,0.79634821]
[1756996226170,1.51592569,847.01,846.55,0.79634821]
[1756996226373,0.72157973,847.0,846.56,0.79634821]
[1756996226771,0.72157973,847.0,846.55,0.79634821]
[1756996227275,0.72157973,847.01,846.55,0.79634821]
[1756996228071,1.51592569,847.01,846.56,0.79634821]
[1756996228276,0.72157973,847.0,846.55,0.79634821]
[1756996228475,0.72157973,847.01,846.54,0.79634821]
[1756996229072,1.51592569,847.01,846.54,0.79634821]
[1756996229272,0.72157973,847.0,846.53,0.79634821]
[1756996229474,0.72157973,847.01,846.53,0.79634821]
[1756996229872,0.9270519,847.02,846.53,0.79634821]
[1756996230376,0.9270519,847.02,846.52,0.79634821]
[1756996230676,0.79434596,847.0,846.47,0.79634821]
[1756996230877,0.72157973,846.99,846.47,0.79634821]
[1756996231478,0.7214446,846.99,846.47,0.79634821]
[1756996232478,1.51579056,846.99,846.47,0.79634821]
[1756996232676,0.7214446,846.98,846.47,0.79634821]
[1756996232880,0.7214446,846.98,846.44,0.79634821]
[1756996233082,0.7214446,847.01,846.42,0.79634821]
[1756996233280,0.92691677,847.02,846.42,0.79634821]
[1756996233584,1.72126273,847.02,846.41,0.79634821]
[1756996233877,0.79434596,847.0,846.4,0.79634821]
[1756996234080,0.7214446,846.99,846.4,0.79634821]
[1756996234278,0.7214446,846.99,846.39,0.79634821]
[1756996234475,0.7214446,847.0,846.39,0.79634821]
[1756996236478,0.7214446,847.0,846.43,0.79634821]
[1756996236680,0.7214446,847.01,846.43,0.79634821]
[1756996236878,0.20547217,847.02,846.43,0.79634821]
[1756996238384,0.20547217,847.02,846.42,0.79634821]
[1756996239183,0.20547217,847.02,846.41,0.79634821]
[1756996240087,0.92677594,847.02,846.41,0.79634821]
[1756996240589,0.79434596,846.98,846.45,0.79634821]
[1756996240783,0.72130377,846.97,846.45,0.79634821]
[1756996241684,0.20547217,847.02,846.48,0.79634821]
[1756996241685,0.72130377,846.99,846.48,0.79634821]
[1756996241986,0.92677594,847.02,846.54,0.79634821]
[1756996242190,0.72130377,847.01,846.53,0.79634821]
[1756996242389,0.72130377,847.01,846.54,0.79634821]
[1756996242690,0.20547217,847.02,846.54,0.79634821]
[1756996243086,0.20547217,847.02,846.55,0.79634821]
[1756996243683,0.92677594,847.02,846.55,0.79634821]
[1756996243987,0.72130377,847.01,846.55,0.79634821]
[1756996244184,0.20547217,847.02,846.51,0.79634821]
[1756996244383,0.20547217,847.02,846.55,0.79634821]
[1756996244985,0.20547217,847.02,846.56,0.79634821]
[1756996245185,0.20547217,847.02,846.55,0.79634821]
[1756996247191,0.20547217,847.02,846.53,0.79634821]
[1756996247687,0.20547217,847.02,846.54,0.79634821]
[1756996247891,0.20547217,847.02,846.51,0.79634821]
[1756996250290,0.20547217,847.02,846.5,0.79634821]
[1756996251792,0.20547217,847.02,846.49,0.79634821]
[1756996254096,0.20547217,847.02,846.5,0.79634821]
[1756996257695,0.20547217,847.02,846.52,0.79634821]
[1756996258496,0.20547217,847.02,846.51,0.79634821]
[1756996260097,0.20547217,847.02,846.51,0.79557932]
[1756996261802,0.20547217,847.02,846.53,0.79557932]
[1756996264299,0.20547217,847.02,846.54,0.79557932]
[1756996264499,0.72075236,847.1,846.54,0.79557932]
[1756996264701,0.20544185,847.11,846.54,0.79557932]
[1756996265803,0.20544185,847.11,846.51,0.79557932]
[1756996270101,0.92619421,847.11,846.51,0.79557932]
[1756996270302,0.72075236,847.1,846.51,0.79557932]
[1756996270501,0.72075236,847.1,846.52,0.79557932]
[1756996271002,1.5849566,847.58,845.77,0.20544124]
[1756996271003,0.79313545,847.38,846.59,0.79557932]
[1756996271305,0.20542669,847.26,846.59,0.79557932]
[1756996272201,0.20542669,847.26,846.6,0.79557932]
[1756996273201,0.20542669,847.26,846.59,0.79557932]
[1756996273603,0.92639008,847.26,846.59,0.79557932]
[1756996274102,0.72096136,847.25,846.59,0.79557932]
[1756996274405,0.20542669,847.26,846.59,0.79557932]
[1756996276107,0.20542669,847.26,846.38,1.0573071]
[1756996276108,0.7210567,847.39,846.67,0.79557932]
[1756996276308,0.20538789,847.39,846.66,0.79557932]
[1756996276504,0.20538789,847.39,846.7,0.79557932]
[1756996276704,0.20538789,847.39,846.73,0.79557932]
[1756996277409,0.79313545,847.62,846.83,0.79557932]
[1756996277605,0.20536304,847.52,846.9,0.79557932]
[1756996278009,0.20536304,847.52,846.9,0.79411356]
[1756996278205,0.20536304,847.52,846.87,0.79411356]
[1756996279204,0.20536304,847.52,845.77,0.20544124]
[1756996279205,0.20536304,847.52,846.85,0.79411356]
[1756996280305,0.20536304,847.52,846.83,0.79411356]
[1756996281009,0.79286765,847.83,846.78,0.79411356]
[1756996281206,0.71952953,847.82,846.85,0.79411356]
[1756996281404,0.20532306,847.7,846.85,0.79411356]
[1756996282206,0.20532306,847.7,846.82,0.79411356]
[1756996283213,0.20532306,847.7,846.36,1.5859607]
[1756996283214,0.20532306,847.7,846.8,0.79411356]
[1756996284216,0.20532306,847.7,846.77,0.79411356]
[1756996285313,0.20532306,847.7,846.76,0.79411356]
[1756996285514,0.20532306,847.7,846.8,0.79411356]
[1756996285710,0.20532306,847.7,846.81,0.79411356]
[1756996285915,0.20532306,847.7,846.8,0.79411356]
[1756996286315,0.20532306,847.7,846.78,0.79411356]
[1756996286512,0.20532306,847.7,846.76,0.79411356]
[1756996287216,0.20532306,847.7,846.75,0.79411356]
[1756996287613,0.20532306,847.7,846.76,0.79411356]
[1756996288214,0.20532306,847.7,845.77,0.20544124]
[1756996288215,0.20532306,847.7,846.75,0.79411356]
[1756996288615,0.20532306,847.7,846.56,1.0573071]
[1756996288616,0.20532306,847.7,846.76,0.79411356]
[1756996289212,0.20532306,847.7,845.77,0.20544124]
[1756996289213,0.20532306,847.7,846.75,0.79411356]
[1756996289517,0.20532306,847.7,846.73,0.79411356]
[1756996290218,0.20532306,847.7,846.72,0.79411356]
[1756996291217,0.20532306,847.7,846.71,0.79411356]
[1756996292014,0.20532306,847.7,846.72,0.79411356]
[1756996292216,0.20532306,847.7,846.71,0.79411356]
[1756996294220,0.20532306,847.7,846.75,0.79411356]
[1756996295221,0.20532306,847.7,846.74,0.79411356]
[1756996295925,0.20532306,847.7,846.71,0.79411356]
[1756996296317,0.20532306,847.7,846.51,1.0573071]
[1756996296318,0.20532306,847.7,846.7,0.79411356]
[1756996299327,0.20532306,847.7,846.71,0.79411356]
[1756996299926,0.20532306,847.7,846.7,0.79411356]
[1756996300929,0.20532306,847.7,846.68,0.79411356]
[1756996301925,0.20532306,847.7,846.69,0.79411356]
[1756996302429,0.20532306,847.7,846.58,0.79411356]
[1756996302628,0.20532306,847.7,846.54,0.79411356]
[1756996303226,0.20532306,847.7,846.5,0.79411356]
[1756996303730,0.20532306,847.7,846.48,0.79411356]
[1756996303930,0.20532306,847.7,846.52,0.79411356]
[1756996304132,0.20532306,847.7,846.5,0.79411356]
[1756996305231,0.20532306,847.7,846.48,0.79411356]
[1756996305432,0.20532306,847.7,846.41,0.79411356]
[1756996305632,0.20532306,847.7,846.39,0.79411356]
[1756996306233,0.20532306,847.7,846.4,0.79411356]
[1756996306729,0.9229294,847.7,846.4,0.79411356]
[1756996306932,0.71760634,847.69,846.4,0.79411356]
[1756996307830,0.20532306,847.7,846.4,0.79411356]
[1756996308033,0.20532306,847.7,846.39,0.79411356]
[1756996308233,0.20532306,847.7,846.4,0.79411356]
[1756996308834,0.20532306,847.7,846.41,0.79411356]
[1756996309031,0.20532306,847.7,846.4,0.79411356]
[1756996309235,0.20532306,847.7,846.19,1.0573071]
[1756996309236,0.79286765,847.68,846.37,0.79411356]
[1756996309436,0.79286765,847.63,846.33,0.79411356]
[1756996309635,0.71760634,847.62,846.33,0.79411356]
[1756996310033,1.51047399,847.62,846.33,0.79411356]
[1756996310236,0.71760634,847.61,846.33,0.79411356]
[1756996310836,0.71760634,847.62,846.33,0.79411356]
[1756996311233,1.51047399,847.62,846.33,0.79411356]
[1756996311433,0.71760634,847.61,846.33,0.79411356]
[1756996312137,0.79286765,847.59,846.35,0.79411356]
[1756996312335,0.71760634,847.58,846.35,0.79411356]
[1756996313038,0.71760634,847.58,846.33,0.79411356]
[1756996313239,1.51047399,847.61,846.33,0.79411356]
[1756996313537,0.71760634,847.6,846.33,0.79411356]
[1756996313743,1.51047399,847.6,846.33,0.79411356]
[1756996313935,0.71760634,847.59,846.34,0.79411356]
[1756996314239,0.71760634,847.59,846.14,1.0573071]
[1756996314440,0.78881976,847.6,846.34,0.79042605]
[1756996314640,0.71760634,847.59,846.34,0.79042605]
[1756996315239,0.71760634,847.59,846.35,0.79042605]
[1756996315440,1.5064261,847.59,846.35,0.79042605]
[1756996315636,0.71760634,847.58,846.35,0.79042605]
[1756996317439,0.71760634,847.58,846.36,0.79042605]
[1756996317940,0.71760634,847.58,846.34,0.79042605]
[1756996318239,0.78881976,847.61,846.34,0.79042605]
[1756996318240,0.71760634,847.6,846.34,0.79042605]
[1756996319144,1.5064261,847.6,846.35,0.79042605]
[1756996319338,0.71760634,847.59,846.35,0.79042605]
[1756996320343,0.71760634,847.59,845.77,0.20544124]
[1756996320344,0.71760634,847.59,846.36,0.79042605]
[1756996320644,0.71760634,847.61,846.36,0.79042605]
[1756996320842,0.78881976,847.59,846.38,0.79042605]
[1756996321138,0.71760634,847.58,846.38,0.79042605]
[1756996321342,1.5064261,847.58,846.39,0.79042605]
[1756996321542,0.71760634,847.57,846.39,0.79042605]
[1756996321938,1.5064261,847.57,846.39,0.79042605]
[1756996322145,0.71760634,847.56,846.4,0.79042605]
[1756996323140,0.71760634,847.56,846.35,0.79042605]
[1756996323339,1.5064261,847.56,846.35,0.79042605]
[1756996323546,0.71760634,847.55,846.35,0.79042605]
[1756996324345,0.78881976,847.53,846.38,0.79042605]
[1756996324645,0.71760634,847.52,846.41,0.79042605]
[1756996324945,0.71760634,847.55,846.41,0.79042605]
[1756996326045,0.78881976,847.54,846.41,0.79042605]
[1756996326341,0.71760634,847.53,846.41,0.79042605]
[1756996327440,0.71760634,847.53,845.77,0.20544124]
[1756996327441,0.71760634,847.53,846.43,0.79042605]
[1756996327746,0.71760634,847.54,846.43,0.79042605]